bitfinex/quotes_ETHUSD_20230113
["timestamp","ask_amount","ask_price","bid_price","bid_amount"]
[1673639129596,3.18504125,1417.6,1417.5,0.00381695]
[1673639129804,1.60270329,1417.6,1417.5,0.00381695]
[1673639130053,3.18504125,1417.6,1417.5,0.00381695]
[1673639130221,8.65687329,1417.6,1417.5,0.00381695]
[1673639130451,8.72287329,1417.6,1417.5,0.00381695]
[1673639131970,17.35938125,1417.6,1417.5,0.00381695]
[1673639132356,10.30521125,1417.6,1417.5,0.00381695]
[1673639134650,2.70509435,1417.6,1417.5,0.00381695]
[1673639134854,1.05675639,1417.6,1417.5,7.05848695]
[1673639135063,1.05675639,1417.6,1417.5,21.23032786]
[1673639135900,1.05675639,1417.6,1417.5,7.12098786]
[1673639136345,1.05875639,1417.6,1417.5,21.22832786]
[1673639136529,1.05675639,1417.7,1417.5,23.35316065]
[1673639136964,1.05675639,1417.7,1417.5,23.34922035]
[1673639140656,1.05675639,1417.7,1417.5,21.22638756]
[1673639141092,1.05675639,1417.7,1417.5,24.83272028]
[1673639141305,1.16599646,1417.8,1417.6,6.10633272]
[1673639141466,0.04324007,1417.8,1417.7,24.76734272]
[1673639141671,0.04324007,1417.8,1417.7,28.26809731]
[1673639144118,0.04324007,1417.8,1417.7,31.26809731]
[1673639151784,1.12624007,1417.8,1417.7,3.06237756]
[1673639152094,1.12624007,1417.8,1417.6,21.22415756]
[1673639152291,0.04324007,1417.8,1417.6,21.22415756]
[1673639153806,0.04324007,1417.8,1417.7,3.60633272]
[1673639154021,0.04324007,1417.8,1417.7,17.71367272]
[1673639154238,0.04324007,1417.8,1417.7,10.72238028]
[1673639155337,0.04324007,1417.8,1417.7,17.77605028]
[1673639156834,0.04324007,1417.8,1417.7,24.82972028]
[1673639157039,0.04324007,1417.8,1417.7,17.77605028]
[1673639157899,1.12624007,1417.8,1417.7,0.06237756]
[1673639158092,1.12624007,1417.8,1417.6,0.06237756]
[1673639158093,15.35600478,1417.8,1417.6,0.06237756]
[1673639158330,15.35600478,1417.8,1417.5,11.03377756]
[1673639158331,8.36882478,1417.8,1417.5,11.03377756]
[1673639158555,8.36882478,1417.8,1417.5,14.64011028]
[1673639158850,8.36882478,1417.8,1417.5,21.69473028]
[1673639159013,8.36882478,1417.8,1417.5,28.74940028]
[1673639159469,8.36882478,1417.8,1417.5,35.80407028]
[1673639159470,1.31564478,1417.8,1417.5,35.80407028]
[1673639159695,1.24964478,1417.8,1417.5,35.80407028]
[1673639160613,0.04324007,1417.8,1417.6,3.60633272]
[1673639160822,0.04324007,1417.8,1417.7,17.71367272]
[1673639161042,0.04324007,1417.8,1417.7,24.82972028]
[1673639161884,0.04071133,1417.8,1417.7,24.82972028]
[1673639162078,0.04071133,1417.8,1417.7,28.33367015]
[1673639166419,0.04071133,1417.8,1417.7,17.77605028]
[1673639167259,1.12371133,1417.8,1417.7,0.06237756]
[1673639167416,1.12371133,1417.8,1417.5,11.03377756]
[1673639167631,15.23007133,1417.8,1417.5,14.64011028]
[1673639167877,1.18971133,1417.8,1417.5,14.64011028]
[1673639168052,4.69004199,1417.8,1417.5,14.64011028]
[1673639168266,11.74340199,1417.8,1417.5,14.64011028]
[1673639168571,1.05675639,1417.7,1417.5,0.06237756]
[1673639168788,1.05675639,1417.7,1417.4,10.21097756]
[1673639168789,8.11089639,1417.7,1417.4,10.21097756]
[1673639168999,7.12014,1417.7,1417.4,13.81731028]
[1673639169207,10.16781894,1417.7,1417.4,13.81731028]
[1673639169418,3.11367894,1417.7,1417.4,13.81731028]
[1673639169643,3.04767894,1417.7,1417.4,20.87243028]
[1673639170702,4.10443533,1417.7,1417.4,20.87243028]
[1673639171135,3.04767894,1417.7,1417.4,29.89496207]
[1673639171345,12.67924199,1417.8,1417.4,29.89496207]
[1673639171534,12.67924199,1417.8,1417.4,36.95013207]
[1673639172465,12.67924199,1417.8,1417.5,1.75005653]
[1673639172672,10.16966772,1417.8,1417.6,10.66050272]
[1673639172923,1.16346772,1417.8,1417.6,17.77705028]
[1673639173134,1.09746772,1417.8,1417.6,17.77705028]
[1673639173359,1.09746772,1417.8,1417.6,24.83122028]
[1673639173576,0.04071133,1417.8,1417.6,27.5111609]
[1673639174101,0.04071133,1417.8,1417.7,3.60633272]
[1673639174260,0.04071133,1417.8,1417.7,24.76734272]
[1673639174468,0.04071133,1417.8,1417.7,24.82972028]
[1673639174785,0.04071133,1417.8,1417.7,30.15474583]
[1673639175024,0.04071133,1417.8,1417.7,30.15474665]
[1673639175232,0.04071133,1417.8,1417.7,28.40490337]
[1673639175547,0.04071133,1417.8,1417.7,21.35123337]
[1673639176771,0.04071133,1417.8,1417.7,28.40490337]
[1673639176987,0.04071133,1417.8,1417.7,32.12319167]
[1673639178407,0.04071133,1417.8,1417.7,32.1229146]
[1673639178559,0.04071133,1417.8,1417.7,36.3109146]
[1673639178932,0.04071133,1417.8,1417.7,37.3672809]
[1673639179296,0.04071133,1417.8,1417.7,38.1263809]
[1673639179993,0.04071133,1417.8,1417.7,39.71216831]
[1673639180146,0.04071133,1417.8,1417.7,39.84780201]
[1673639180361,0.04071133,1417.8,1417.7,40.90076779]
[1673639182354,0.04071133,1417.8,1417.7,39.31498038]
[1673639185045,0.04071133,1417.8,1417.7,38.78588038]
[1673639185955,0.10780705,1417.9,1417.7,45.83955038]
[1673639186161,0.10780705,1417.9,1417.8,17.28929899]
[1673639186378,0.10780705,1417.9,1417.8,41.01121655]
[1673639187949,0.10780705,1417.9,1417.8,38.51121655]
[1673639190138,0.10780705,1417.9,1417.8,38.74121655]
[1673639190350,0.10780705,1417.9,1417.8,36.7730398]
[1673639190819,0.10780705,1417.9,1417.8,36.77285671]
[1673639191009,0.10780705,1417.9,1417.8,33.83120532]
[1673639191194,0.10780705,1417.9,1417.8,33.60120532]
[1673639194913,0.10780705,1417.9,1417.8,12.44166532]
[1673639195093,0.10780705,1417.9,1417.8,29.01725028]
[1673639198595,0.10780705,1417.9,1417.8,30.76692591]
[1673639198973,0.10780705,1417.9,1417.8,35.24137206]
[1673639199181,0.10780705,1417.9,1417.8,34.18840628]
[1673639199523,0.10780705,1417.9,1417.8,35.24137206]
[1673639199699,0.10780705,1417.9,1417.8,40.64928557]
[1673639200944,0.10780705,1417.9,1417.8,41.89067121]
[1673639201216,0.10780705,1417.9,1417.8,44.12900061]
[1673639202414,0.10780705,1417.9,1417.8,42.5432132]
[1673639203559,0.10780705,1417.9,1417.8,41.3542132]
[1673639207267,0.10780705,1417.9,1417.8,40.64564919]
[1673639209802,0.10780705,1417.9,1417.8,39.59331979]
[1673639210328,0.10780705,1417.9,1417.8,40.64564919]
[1673639210636,0.10481105,1417.9,1417.8,40.64564919]
[1673639211796,0.10481105,1417.9,1417.8,42.2314366]
[1673639212374,0.1061323,1418.0,1417.8,41.1791072]
[1673639212617,0.1061323,1418.0,1417.9,33.4372625]
[1673639212829,0.1061323,1418.0,1417.9,36.72964006]
[1673639214797,9.95803796,1418.3,1418.0,12.1234222]
[1673639214798,0.066,1418.3,1418.0,12.1234222]
[1673639215060,0.10318491,1418.4,1418.2,6.2390475]
[1673639215251,0.10318491,1418.4,1418.3,34.61187681]
[1673639215475,0.10318491,1418.4,1418.3,33.62114591]
[1673639215668,0.10318491,1418.4,1418.3,36.62114591]
[1673639215883,0.10318491,1418.4,1418.3,40.58851938]
[1673639216057,0.10318491,1418.4,1418.3,42.58799975]
[1673639216273,4.91e-06,1418.4,1418.3,40.58851938]
[1673639216524,4.91e-06,1418.4,1418.3,37.47922483]
[1673639216739,4.91e-06,1418.4,1418.3,22.32473637]
[1673639216926,4.91e-06,1418.4,1418.3,27.42570339]
[1673639217119,4.91e-06,1418.4,1418.3,28.61270339]
[1673639218159,4.91e-06,1418.4,1418.3,26.86302776]
[1673639218630,4.91e-06,1418.4,1418.3,33.91371776]
[1673639219266,4.91e-06,1418.4,1418.3,33.20515375]
[1673639221448,4.91e-06,1418.4,1418.3,17.91677375]
[1673639221639,4.91e-06,1418.4,1418.3,27.82078028]
[1673639225070,4.91e-06,1418.4,1418.3,29.01278028]
[1673639226121,4.91e-06,1418.4,1418.3,29.24278028]
[1673639227378,4.91e-06,1418.4,1418.3,33.16695758]
[1673639227557,4.91e-06,1418.4,1418.3,30.99173348]
[1673639227750,4.91e-06,1418.4,1418.3,37.99595121]
[1673639227960,4.91e-06,1418.4,1418.3,35.82052819]
[1673639228214,4.91e-06,1418.4,1418.3,37.99599272]
[1673639228445,0.14893164,1418.6,1418.3,39.04910118]
[1673639228764,0.2237026,1418.8,1418.6,2.5]
[1673639228938,0.012,1418.7,1418.6,5.5]
[1673639229103,0.012,1418.7,1418.6,26.70997756]
[1673639229322,0.012,1418.7,1418.6,26.93997756]
[1673639229555,0.012,1418.7,1418.6,29.24290831]
[1673639230325,0.2237026,1418.8,1418.7,2.5]
[1673639230640,0.2237026,1418.8,1418.7,27.8301]
[1673639230840,0.2237026,1418.8,1418.7,27.89247756]
[1673639231292,0.2237026,1418.8,1418.7,25.39247756]
[1673639231450,0.2237026,1418.8,1418.7,3.06237756]
[1673639231650,0.2237026,1418.8,1418.7,13.65503272]
[1673639231880,0.2237026,1418.8,1418.7,27.81281028]
[1673639232056,0.2237026,1418.8,1418.7,27.81481028]
[1673639232890,0.2237026,1418.8,1418.7,20.76611028]
[1673639233879,0.2237026,1418.8,1418.7,6.66871028]
[1673639234322,0.2237026,1418.8,1418.7,13.71741028]
[1673639234532,0.2237026,1418.8,1418.7,20.76611028]
[1673639235380,0.2237026,1418.8,1418.7,27.81481028]
[1673639235691,0.2237026,1418.8,1418.7,20.76611028]
[1673639236761,0.2237026,1418.8,1418.7,13.71741028]
[1673639236915,0.2237026,1418.8,1418.7,6.66871028]
[1673639237114,0.2237026,1418.8,1418.7,3.66871028]
[1673639237466,0.2237026,1418.8,1418.7,24.75243272]
[1673639237665,0.2237026,1418.8,1418.7,28.00118531]
[1673639240957,0.2237026,1418.8,1418.7,10.71741028]
[1673639241154,0.2237026,1418.8,1418.7,24.81481028]
[1673639243261,0.2237026,1418.8,1418.7,24.81281028]
[1673639243566,0.2237026,1418.8,1418.7,24.81481028]
[1673639243894,0.2237026,1418.8,1418.7,10.71741028]
[1673639246716,0.2237026,1418.8,1418.7,24.81481028]
[1673639249907,0.2237026,1418.8,1418.7,17.76611028]
[1673639250858,0.2237026,1418.8,1418.7,24.81481028]
[1673639253361,0.2237026,1418.8,1418.7,24.81281028]
[1673639253568,0.2237026,1418.8,1418.7,3.66871028]
[1673639253779,1.5658376,1418.8,1418.7,3.60633272]
[1673639253997,1.5658376,1418.8,1418.6,0.06237756]
[1673639254165,1.5658376,1418.8,1418.6,10.65533272]
[1673639254375,1.5658376,1418.8,1418.6,24.81372992]
[1673639254376,3.14817556,1418.8,1418.6,24.81372992]
[1673639254694,3.67687556,1418.8,1418.6,24.81372992]
[1673639255233,3.39049596,1418.8,1418.6,24.81372992]
[1673639255447,1.808158,1418.8,1418.6,24.81372992]
[1673639255656,2.86179596,1418.8,1418.6,24.81372992]
[1673639256693,1.0557554,1418.7,1418.6,24.81372992]
[1673639259671,2.63809336,1418.7,1418.6,24.81372992]
[1673639260606,2.63809336,1418.7,1418.6,24.81172992]
[1673639260804,1.0557554,1418.7,1418.6,24.81372992]
[1673639261363,2.63809336,1418.7,1418.6,24.81372992]
[1673639263148,2.63795392,1418.7,1418.6,24.81372992]
[1673639263465,1.58233796,1418.7,1418.6,24.81372992]
[1673639264063,3.6900474,1418.7,1418.6,24.81372992]
[1673639264261,1.58233796,1418.7,1418.6,24.81372992]
[1673639264472,3.6900474,1418.7,1418.6,24.81372992]
[1673639264935,9.81709332,1418.7,1418.6,3.66652992]
[1673639265150,18.12379332,1418.7,1418.6,3.60633272]
[1673639265462,19.70761095,1418.7,1418.6,3.60633272]
[1673639265675,12.65891095,1418.7,1418.6,3.60633272]
[1673639265888,11.07509332,1418.7,1418.6,3.60633272]
[1673639266072,12.65891755,1418.7,1418.6,3.60633272]
[1673639266493,19.70781204,1418.7,1418.6,3.60633272]
[1673639266675,25.17249332,1418.7,1418.6,3.60633272]
[1673639267133,25.17249332,1418.7,1418.5,0.0601972]
[1673639267134,5.61017247,1418.7,1418.5,0.0601972]
[1673639267456,5.61017247,1418.7,1418.5,3.60633272]
[1673639267457,1.61686333,1418.6,1418.5,3.60633272]
[1673639267673,3.20061903,1418.6,1418.5,3.60633272]
[1673639267827,2.63963402,1418.6,1418.5,3.60633272]
[1673639268490,2.63963402,1418.6,1418.5,10.65603272]
[1673639268829,1.05587832,1418.6,1418.5,24.81562992]
[1673639270505,1.05587832,1418.6,1418.5,10.71622992]
[1673639271638,1.05587832,1418.6,1418.5,24.81562992]
[1673639273382,2.63963402,1418.6,1418.5,3.66652992]
[1673639273516,2.63963402,1418.6,1418.5,3.60633272]
[1673639273970,1.5837557,1418.6,1418.5,3.60633272]
[1673639274168,2.63976166,1418.6,1418.5,3.60633272]
[1673639274736,1.05600596,1418.6,1418.5,3.60633272]
[1673639275093,1.05391169,1418.6,1418.5,3.60633272]
[1673639276165,1.05391169,1418.6,1418.5,10.65603272]
[1673639276514,1.05391169,1418.6,1418.5,3.66652992]
[1673639276686,1.05391169,1418.6,1418.5,3.60633272]
[1673639276903,1.05391169,1418.6,1418.5,17.70573272]
[1673639277097,1.05391169,1418.6,1418.5,24.81562992]
[1673639277429,1.5837557,1418.7,1418.6,2.5]
[1673639277630,0.2897026,1418.8,1418.6,40.1593719]
[1673639277837,0.2897026,1418.8,1418.7,12.60390456]
[1673639277838,0.2357026,1418.8,1418.7,12.60390456]
[1673639278044,0.2237026,1418.8,1418.7,35.75765887]
[1673639279638,0.2237026,1418.8,1418.7,28.70895887]
[1673639280162,0.2237026,1418.8,1418.7,26.52866862]
[1673639280602,0.2237026,1418.8,1418.7,33.57736862]
[1673639280783,2.6e-06,1418.8,1418.7,36.99492288]
[1673639281528,2.6e-06,1418.8,1418.7,21.20066862]
[1673639281757,2.6e-06,1418.8,1418.7,35.29806862]
[1673639281928,2.6e-06,1418.8,1418.7,37.08115865]
[1673639282478,1.5337583,1419.1,1418.7,37.08115865]
[1673639282885,2.47402613,1419.1,1418.8,6.60633272]
[1673639283071,2.47402613,1419.1,1418.9,10.65404272]
[1673639283206,1.5337583,1419.1,1419.0,3.60633272]
[1673639283421,0.22407078,1419.2,1419.0,3.60633272]
[1673639283665,0.15807078,1419.2,1419.1,3.60633272]
[1673639285470,0.15807078,1419.2,1419.1,10.65304272]
[1673639285789,0.15807078,1419.2,1419.1,17.75994992]
[1673639286001,0.15807078,1419.2,1419.1,24.80665992]
[1673639286331,0.15807078,1419.2,1419.1,27.77692523]
[1673639286905,0.15807078,1419.2,1419.1,33.86548924]
[1673639287216,0.15807078,1419.2,1419.1,34.39408924]
[1673639288476,0.15807078,1419.2,1419.1,38.56085104]
[1673639288681,0.15807078,1419.2,1419.1,34.39408924]
[1673639288896,0.15807078,1419.2,1419.1,33.86548924]
[1673639289154,0.17296029,1419.4,1419.1,33.86348924]
[1673639289347,0.17296029,1419.4,1419.3,4.79633272]
[1673639289562,0.17296029,1419.4,1419.3,25.93349272]
[1673639289769,0.17296029,1419.4,1419.3,28.99368992]
[1673639291346,0.17296029,1419.4,1419.3,7.85652992]
[1673639291723,0.17296029,1419.4,1419.3,28.99368992]
[1673639292479,0.17296029,1419.4,1419.3,33.02786057]
[1673639294929,0.17296029,1419.4,1419.3,34.92842458]
[1673639295479,0.17658071,1419.5,1419.4,2.5]
[1673639295659,39.31365124,1419.9,1419.5,28.17892]
[1673639295660,0.23896029,1419.9,1419.5,28.17892]
[1673639295819,0.23896029,1419.9,1419.8,24.73605272]
[1673639296036,0.17296029,1419.9,1419.8,28.95851523]
[1673639296274,0.17296029,1419.9,1419.8,3.66652992]
[1673639296483,0.17296029,1419.9,1419.8,3.60633272]
[1673639297221,1.25596029,1419.9,1419.8,3.60633272]
[1673639297438,0.17296029,1419.9,1419.8,3.60633272]
[1673639297759,0.17296029,1419.9,1419.8,18.88481272]
[1673639297922,2.9e-07,1419.9,1419.8,26.43922791]
[1673639298130,2.9e-07,1419.9,1419.8,31.31455372]
[1673639298558,2.9e-07,1419.9,1419.8,27.14779192]
[1673639298790,2.9e-07,1419.9,1419.8,31.31455372]
[1673639299323,2.9e-07,1419.9,1419.8,27.14779192]
[1673639300507,2.9e-07,1419.9,1419.8,32.50555372]
[1673639300685,1.03540853,1420.2,1419.8,39.40850142]
[1673639301014,1.03540853,1420.2,1420.1,18.88183272]
[1673639301334,1.03540853,1420.2,1420.1,13.70827992]
[1673639301714,0.88540853,1420.2,1420.1,6.66652992]
[1673639302386,0.88540853,1420.2,1420.1,3.66652992]
[1673639302542,0.88540853,1420.2,1420.1,3.60633272]
[1673639303069,0.88540853,1420.2,1420.1,25.09823571]
[1673639303313,0.88540853,1420.2,1420.1,25.15843291]
[1673639304273,1.41360853,1420.2,1420.1,3.66652992]
[1673639304491,0.88540853,1420.2,1420.1,3.60633272]
[1673639304853,1.41360853,1420.2,1420.1,3.60633272]
[1673639305588,1.41360853,1420.2,1420.0,0.0601972]
[1673639305743,0.6145834,1420.0,1419.7,0.066]
[1673639305963,0.6145834,1420.0,1419.8,3.60633272]
[1673639306134,0.5283,1419.9,1419.8,3.60633272]
[1673639306343,0.5283,1419.9,1419.8,14.08637]
[1673639306584,0.5283,1419.9,1419.8,14.15237]
[1673639306808,1.1427834,1420.0,1419.8,17.75870272]
[1673639306963,1.1427834,1420.0,1419.9,3.60633272]
[1673639307174,0.6145834,1420.0,1419.9,3.60633272]
[1673639308026,0.72886174,1420.0,1419.9,3.60633272]
[1673639308767,0.72886174,1420.0,1419.8,0.066]
[1673639308972,0.72886174,1420.0,1419.8,3.60633272]
[1673639308973,7.77113174,1420.0,1419.8,3.60633272]
[1673639309204,7.83713174,1420.0,1419.8,3.60633272]
[1673639309375,0.79486174,1420.0,1419.8,3.60633272]
[1673639309592,0.72886174,1420.0,1419.8,10.64943272]
[1673639309833,0.6145834,1420.0,1419.9,3.60633272]
[1673639312002,0.6145834,1420.0,1419.9,24.73455272]
[1673639312212,0.6145834,1420.0,1419.9,24.80055272]
[1673639313701,0.6145834,1420.0,1419.9,25.98855272]
[1673639314049,0.6145834,1420.0,1419.9,25.98655272]
[1673639314205,0.6145834,1420.0,1419.9,29.41049499]
[1673639314681,0.6145834,1420.0,1419.9,29.40849499]
[1673639314906,0.6145834,1420.0,1419.9,29.41049499]
[1673639316007,0.6145834,1420.0,1419.9,29.39906669]
[1673639316978,0.6145834,1420.0,1419.9,32.39906669]
[1673639322273,0.6145834,1420.0,1419.9,28.97712442]
[1673639323172,3.4e-06,1420.0,1419.9,30.16912442]
[1673639323369,0.88540853,1420.2,1420.0,2.5]
[1673639323583,0.88540853,1420.2,1420.1,11.83608272]
[1673639323838,0.88540853,1420.2,1420.1,20.79554099]
[1673639324169,0.88540853,1420.2,1420.1,10.71408272]
[1673639325163,0.88540853,1420.2,1420.1,17.75583272]
[1673639325825,0.88540853,1420.2,1420.1,3.67233272]
[1673639325998,0.88540853,1420.2,1420.1,3.60633272]
[1673639326209,0.88540853,1420.2,1420.1,19.59039673]
[1673639326467,0.88540853,1420.2,1420.1,32.7869794]
[1673639327264,0.88540853,1420.2,1420.1,24.5532294]
[1673639327522,0.88540853,1420.2,1420.1,13.71408272]
[1673639328320,8.53e-06,1420.2,1420.1,27.79758272]
[1673639328489,8.53e-06,1420.2,1420.1,28.98058272]
[1673639328647,0.04928612,1420.3,1420.1,28.98258272]
[1673639328859,0.04928612,1420.3,1420.2,23.58711099]
[1673639329089,0.04928612,1420.3,1420.2,23.65311099]
[1673639329485,0.04928612,1420.3,1420.2,16.61185099]
[1673639330116,0.04928612,1420.3,1420.2,27.79611272]
[1673639330325,0.04928612,1420.3,1420.2,27.79411272]
[1673639330530,0.04928612,1420.3,1420.2,27.79611272]
[1673639332595,0.04928612,1420.3,1420.2,20.75485272]
[1673639332778,0.04928612,1420.3,1420.2,13.71359272]
[1673639333108,0.04928612,1420.3,1420.2,3.67233272]
[1673639333109,1.13228612,1420.3,1420.2,3.67233272]
[1673639333315,1.13228612,1420.3,1420.2,10.64759272]
[1673639333316,1.35079383,1420.3,1420.2,10.64759272]
[1673639333476,1.13228612,1420.3,1420.2,10.71359272]
[1673639333896,1.13228612,1420.3,1420.2,3.67233272]
[1673639334158,2.18507707,1420.3,1420.2,3.60633272]
[1673639334367,3.42338746,1420.3,1420.2,3.60633272]
[1673639334536,14.2878718,1420.3,1420.1,0.066]
[1673639334739,7.11349668,1420.2,1419.8,0.066]
[1673639334981,7.11349668,1420.2,1419.8,3.60633272]
[1673639334982,15.13672973,1420.1,1419.8,3.60633272]
[1673639335175,4.46383837,1420.1,1419.8,3.60633272]
[1673639335384,1.58126973,1420.1,1419.8,3.60633272]
[1673639335789,1.58126973,1420.1,1419.9,3.60633272]
[1673639336317,1.05306973,1420.0,1419.8,0.066]
[1673639336523,1.05306973,1420.0,1419.8,3.60633272]
[1673639336524,15.13772973,1420.0,1419.8,3.60633272]
[1673639336733,17.75757829,1420.0,1419.8,3.60633272]
[1673639336975,19.33438414,1420.0,1419.8,3.60633272]
[1673639337210,1.05306973,1419.9,1419.8,3.60633272]
[1673639337529,3.88267252,1420.0,1419.7,0.066]
[1673639337700,3.60691829,1420.0,1419.7,3.60633272]
[1673639337907,5.18372414,1420.0,1419.7,3.60633272]
[1673639338108,5.24972414,1420.0,1419.7,10.65002272]
[1673639338321,5.24972414,1420.0,1419.7,3.67233272]
[1673639338572,5.24972414,1420.0,1419.7,3.60633272]
[1673639339155,3.67291829,1420.0,1419.7,3.60633272]
[1673639339534,5.18372414,1420.0,1419.7,3.60633272]
[1673639339758,5.24972414,1420.0,1419.7,10.65005272]
[1673639340074,5.24972414,1420.0,1419.7,10.71605272]
[1673639340815,5.24972414,1420.0,1419.8,3.60633272]
[1673639340997,2.61984856,1420.0,1419.8,10.64934272]
[1673639341206,3.22407558,1420.1,1419.8,10.71534272]
[1673639341420,1.05306973,1420.0,1419.8,10.71334272]
[1673639341634,1.05306973,1420.0,1419.8,10.71534272]
[1673639342228,2.62987558,1420.0,1419.8,10.71534272]
[1673639342437,3.16305408,1420.0,1419.8,10.71534272]
[1673639342861,3.16305408,1420.0,1419.8,3.67233272]
[1673639343094,1.05306973,1419.9,1419.8,3.60633272]
[1673639344541,1.05306973,1419.9,1419.8,10.64957272]
[1673639344911,3.16305408,1420.0,1419.8,10.71557272]
[1673639348061,1.58624823,1420.0,1419.8,10.71557272]
[1673639348371,3.16305408,1420.0,1419.8,10.71557272]
[1673639349425,0.31630541,1419.9,1419.8,0.066]
[1673639349592,14.40178541,1419.9,1419.7,3.0]
[1673639349806,21.51052541,1419.9,1419.7,3.60633272]
[1673639350463,14.46778541,1419.9,1419.7,3.60633272]
[1673639351020,7.42504541,1419.9,1419.7,3.60633272]
[1673639351230,7.10874,1419.9,1419.7,3.60633272]
[1673639351429,0.066,1419.9,1419.8,3.60633272]
[1673639351595,11.69340585,1420.1,1419.8,3.60633272]
[1673639351596,8.4664,1420.1,1419.8,3.60633272]
[1673639351806,8.4664,1420.1,1419.9,24.73455272]
[1673639352082,0.066,1420.1,1420.0,3.60633272]
[1673639352241,2.10605112,1420.2,1420.0,3.60633272]
[1673639353194,9.14746112,1420.2,1420.0,3.60633272]
[1673639353402,10.79026697,1420.2,1420.0,3.60633272]
[1673639353808,9.21346112,1420.2,1420.0,3.60633272]
[1673639354466,10.79026697,1420.2,1420.0,3.60633272]
[1673639354858,9.21346112,1420.2,1420.0,3.60633272]
[1673639356378,2.17205112,1420.2,1420.0,3.60633272]
[1673639356596,9.14731112,1420.2,1420.0,3.60633272]
[1673639356813,2.17205112,1420.2,1420.1,3.60633272]
[1673639356982,2.10605112,1420.2,1420.1,3.60633272]
[1673639357330,1.05298139,1420.2,1420.1,10.64808272]
[1673639357506,1.05298139,1420.2,1420.1,20.23565399]
[1673639357851,1.05298139,1420.2,1420.1,31.46540399]
[1673639359352,1.05298139,1420.2,1420.1,10.34015399]
[1673639359491,1.05298139,1420.2,1420.1,28.98558272]
[1673639361586,1.05298139,1420.2,1420.1,28.98358272]
[1673639361903,1.05298139,1420.2,1420.1,28.98558272]
[1673639363165,0.04928612,1420.3,1420.2,2.5]
[1673639363166,6.12e-06,1420.3,1420.2,2.5]
[1673639363416,1.64706973,1420.6,1420.3,28.16304]
[1673639363602,1.58106973,1420.6,1420.5,28.15908]
[1673639363951,11.97438362,1420.7,1420.5,28.15908]
[1673639363952,1.31393806,1420.7,1420.5,31.83141272]
[1673639364108,1.24793806,1420.7,1420.6,3.60633272]
[1673639364319,1.24793806,1420.7,1420.6,17.68487272]
[1673639364548,1.24793806,1420.7,1420.6,10.71160272]
[1673639364903,1.24793806,1420.7,1420.6,3.67233272]
[1673639365064,2.82474391,1420.7,1420.6,3.60633272]
[1673639365274,16.90230391,1420.7,1420.6,3.60633272]
[1673639365542,3.94732183,1420.7,1420.5,0.066]
[1673639365684,1.24793806,1420.7,1420.4,10.03982]
[1673639365898,2.82474391,1420.7,1420.4,13.71215272]
[1673639366104,1.05306973,1420.6,1420.4,13.71215272]
[1673639366999,1.05306973,1420.6,1420.4,3.67233272]
[1673639367000,16.99096997,1420.6,1420.4,3.67233272]
[1673639367156,1.05306973,1420.5,1420.4,3.60633272]
[1673639367370,17.58496997,1420.6,1420.4,3.60633272]
[1673639367613,2.70625975,1420.5,1420.4,3.60633272]
[1673639368201,2.70625975,1420.5,1420.3,0.066]
[1673639368419,2.70625975,1420.5,1420.2,0.066]
[1673639368420,19.5546056,1420.5,1420.2,0.066]
[1673639368746,1.32369571,1420.4,1420.2,3.60633272]
[1673639368954,2.77225975,1420.5,1420.2,3.60633272]
[1673639369169,1.05306973,1420.5,1420.2,3.60633272]
[1673639369359,8.09289973,1420.5,1420.2,3.60633272]
[1673639369575,1.05306973,1420.4,1420.2,3.60633272]
[1673639369805,15.13414973,1420.4,1420.2,3.60633272]
[1673639370028,1.51341497,1420.3,1420.2,3.60633272]
[1673639372229,0.5941,1420.4,1420.2,24.73011272]
[1673639372432,1.58106973,1420.5,1420.3,3.60633272]
[1673639372638,1.58106973,1420.5,1420.4,3.60633272]
[1673639372902,1.05306973,1420.5,1420.4,3.60633272]
[1673639374007,9.21008585,1420.6,1420.4,3.60633272]
[1673639374008,1.64706973,1420.6,1420.4,17.68687272]
[1673639374341,1.58306973,1420.6,1420.5,17.68587272]
[1673639374551,1.84193806,1420.7,1420.5,24.79164272]
[1673639374897,1.77593806,1420.7,1420.5,24.79164272]
[1673639375058,3.35274391,1420.7,1420.5,24.79164272]
[1673639375275,3.35274391,1420.7,1420.5,3.67233272]
[1673639375503,3.35274391,1420.7,1420.5,3.60633272]
[1673639375898,2.82474391,1420.7,1420.5,3.60633272]
[1673639376148,1.24793806,1420.7,1420.6,3.60633272]
[1673639376368,1.24793806,1420.7,1420.6,24.72414272]
[1673639376530,1.24793806,1420.7,1420.6,17.75087272]
[1673639376739,0.19486833,1420.7,1420.6,24.79014272]
[1673639377254,0.19486833,1420.7,1420.6,17.75087272]
[1673639377377,0.19486833,1420.7,1420.6,10.71160272]
[1673639377806,0.19486833,1420.7,1420.6,17.75087272]
[1673639378314,0.19686833,1420.7,1420.6,17.74887272]
[1673639378526,0.19486833,1420.7,1420.6,28.66349169]
[1673639379629,0.19486833,1420.7,1420.6,21.62422169]
[1673639383041,7.23364833,1420.7,1420.6,3.67233272]
[1673639383300,7.29964833,1420.7,1420.6,3.60633272]
[1673639384091,14.33842833,1420.7,1420.6,3.60633272]
[1673639384427,22.43027806,1420.7,1420.6,3.60633272]
[1673639384639,25.55678389,1420.7,1420.5,0.066]
[1673639384866,25.55678389,1420.7,1420.5,3.60633272]
[1673639384867,18.51800389,1420.7,1420.5,3.60633272]
[1673639385044,11.47922389,1420.7,1420.5,3.60633272]
[1673639386197,20.09480974,1420.7,1420.5,3.60633272]
[1673639386407,11.47922389,1420.7,1420.5,3.60633272]
[1673639387513,13.05602974,1420.7,1420.5,3.60633272]
[1673639387708,20.09480974,1420.7,1420.5,3.60633272]
[1673639388099,1.31393806,1420.7,1420.5,17.68585272]
[1673639388325,1.24793806,1420.7,1420.5,17.75185272]
[1673639388666,1.24793806,1420.7,1420.5,3.67233272]
[1673639388880,1.24793806,1420.7,1420.5,3.60633272]
[1673639389113,1.24793806,1420.7,1420.5,10.64609272]
[1673639389266,1.24793806,1420.7,1420.5,3.67233272]
[1673639389618,1.24793806,1420.7,1420.5,3.60633272]
[1673639389927,2.82474391,1420.7,1420.5,3.60633272]
[1673639390242,2.82474391,1420.7,1420.5,10.64602272]
[1673639390419,2.82474391,1420.7,1420.5,10.71202272]
[1673639390626,1.24793806,1420.7,1420.5,10.71202272]
[1673639391057,1.24793806,1420.7,1420.5,10.71209272]
[1673639391925,2.82474391,1420.7,1420.5,3.67233272]
[1673639392132,11.84579068,1420.7,1420.5,3.60633272]
[1673639392449,1.05306973,1420.6,1420.4,0.066]
[1673639392619,14.07954,1420.5,1420.4,3.60633272]
[1673639392817,14.14554,1420.5,1420.4,3.60633272]
[1673639393028,7.10577,1420.5,1420.4,3.60633272]
[1673639393288,17.07183144,1420.5,1420.3,0.066]
[1673639393448,19.84063729,1420.5,1420.3,3.60633272]
[1673639393871,19.84063729,1420.5,1420.2,12.4967]
[1673639393872,7.04027,1420.4,1420.2,3.066]
[1673639394072,10.14345346,1420.4,1420.2,3.60633272]
[1673639394288,17.18372346,1420.4,1420.2,3.60400236]
[1673639394852,18.76052931,1420.4,1420.2,3.60400236]
[1673639395343,0.5281,1420.3,1420.2,3.60400236]
[1673639395556,19.28862931,1420.4,1420.2,3.60400236]